lending/lending_fUSD_20250418
["ID","MTS","AMOUNT","RATE_DAILY","PERIOD"]
[358356537,1744984244063,-250.0,0.00070786,2]
[358356538,1744984244074,-186.19,0.00070805,120]
[358356539,1744984244086,-199.79769971,0.00071003,35]
[358356540,1744984244097,-152.89,0.0007101,120]
[358356541,1744984244108,-500.0,0.00071067,15]
[358356542,1744984244119,-1000.0,0.00071085,120]
[358356543,1744984244129,-2000.0,0.00071341,120]
[358356544,1744984244141,-500.0,0.00071343,120]
[358356545,1744984244151,-341.568791,0.00071408,120]
[358356546,1744984244160,-199.79769971,0.00071762,36]
[358356547,1744984244171,-207.58748821,0.00071981,120]
[358356548,1744984244183,-3876.5302668,0.00072,73]
[358356549,1744984244195,-1077.26,0.000725,120]
[358356550,1744984244205,-199.79769971,0.00072521,36]
[358356551,1744984244216,-900.0,0.00073,74]
[358356552,1744984244228,-1201.41347565,0.00073,120]
[358356555,1744984246278,-153.0,0.00047581,30]
[358356556,1744984246289,-153.0,0.00047581,30]
[358356557,1744984246301,-8798.58652435,0.00073,120]
[358356558,1744984246312,-200.0,0.00073008,120]
[358356559,1744984246322,-865.2,0.0007302,2]
[358356560,1744984246333,-199.79769971,0.00073279,37]
[358356561,1744984246343,-191.97,0.00073722,2]
[358356562,1744984246354,-282.46660048,0.00073823,120]
[358356563,1744984246365,-1055.6465664,0.00073973,120]
[358356564,1744984246376,-900.0,0.00074,75]
[358356565,1744984246387,-199.79769971,0.00074038,37]
[358356566,1744984246398,-1000.4284128,0.00074146,14]
[358356567,1744984246409,-1129.7589,0.00074244,2]
[358356568,1744984246420,-1000.0,0.00074244,30]
[358356569,1744984246431,-263.0498,0.00074245,2]
[358356570,1744984246442,-692.15103477,0.0007427,15]
[358356571,1744984246452,-409.8717,0.00074271,2]
[358356572,1744984246462,-500.0,0.0007437,120]
[358356573,1744984246474,-500.0,0.0007437,120]
[358356574,1744984246484,-500.0,0.0007437,120]
[358356575,1744984246495,-500.0,0.0007437,120]
[358356576,1744984246506,-500.0,0.0007437,120]
[358356577,1744984246517,-500.0,0.0007437,120]
[358356578,1744984246528,-500.0,0.0007437,120]
[358356579,1744984246539,-454.8359678,0.0007437,120]
[358356580,1744984246550,-1176.46,0.0007437,120]
[358356581,1744984246561,-500.0,0.0007437,120]
[358356582,1744984246575,-542.38511525,0.0007437,120]
[358356583,1744984246585,-500.0,0.0007437,120]
[358356584,1744984246596,-791.3,0.0007437,120]
[358356585,1744984246607,-500.0,0.0007437,120]
[358356586,1744984246619,-1000.0,0.0007437,120]
[358356587,1744984246630,-500.0,0.0007437,120]
[358356588,1744984246641,-500.0,0.0007437,120]
[358356589,1744984246653,-2500.0,0.0007444,38]
[358356590,1744984246662,-500.0,0.00074606,120]
[358356591,1744984246672,-1000.0,0.00074606,120]
[358356592,1744984246681,-500.0,0.00074606,120]
[358356593,1744984246690,-492.90248942,0.00074606,120]
[358356594,1744984246699,-500.0,0.00074606,120]
[358356595,1744984246708,-350.0,0.00074606,120]
[358356596,1744984246909,-500.0,0.00074606,120]
[358356597,1744984246926,-500.0,0.00074606,120]
[358356598,1744984246937,-500.0,0.00074606,120]
[358356599,1744984246946,-500.0,0.00074606,120]
[358356600,1744984246956,-500.0,0.00074606,120]
[358356601,1744984246966,-500.0,0.00074606,120]
[358356602,1744984246975,-500.0,0.00074606,120]
[358356603,1744984246984,-500.0,0.00074606,120]
[358356604,1744984246993,-2000.0,0.00074608,120]
[358356605,1744984247003,-612.511155,0.00074608,120]
[358356606,1744984247012,-200.0,0.00074608,120]
[358356607,1744984247021,-199.79769971,0.00074797,38]
[358356608,1744984247030,-552.0922,0.00074797,2]
[358356609,1744984247039,-2500.0,0.00074797,2]
[358356610,1744984247049,-207.58748821,0.00074817,120]
[358356611,1744984247058,-521.99058857,0.00074817,80]
[358356612,1744984247067,-692.15103471,0.00074892,15]
[358356613,1744984247076,-3026.91221777,0.00074898,119]
[358356615,1744984247085,-3026.91221777,0.00074899,119]
[358356617,1744984247095,-150.0,0.00074903,60]
[358356619,1744984247104,-3689.14,0.00074917,120]
[358356621,1744984247113,-500.0,0.00074917,120]
[358356623,1744984247126,-500.0,0.00074917,120]
[358356625,1744984247135,-500.0,0.00074917,120]
[358356627,1744984247145,-15905.56,0.00074917,7]
[358356629,1744984247154,-500.0,0.00074917,120]
[358356631,1744984247164,-4127.44,0.00074917,120]
[358356632,1744984247173,-500.0,0.00074917,120]
[358356633,1744984247182,-500.0,0.00074917,120]
[358356634,1744984247192,-500.0,0.00074917,120]
[358356635,1744984247201,-448.60101607,0.00074917,120]
[358356636,1744984247210,-500.0,0.00074918,120]
[358356637,1744984247219,-500.0,0.00074918,120]
[358356638,1744984247228,-1176.46,0.00074918,120]
[358356639,1744984247237,-500.0,0.00074918,120]
[358356640,1744984247246,-500.0,0.00074918,120]
[358356641,1744984247255,-791.3,0.00074918,120]
[358356642,1744984247264,-500.0,0.00074918,120]
[358356643,1744984247273,-1000.0,0.00074918,120]
[358356644,1744984247282,-500.0,0.00074918,120]
[358356645,1744984247291,-500.0,0.00074918,120]
[358356646,1744984247300,-152495.47055469,0.00075,3]
[358356647,1744984247309,-163.87533949,0.00075,58]
[358356648,1744984247318,-1187.0531369,0.00075,120]
[358356649,1744984247327,-900.0,0.00075,76]
[358356650,1744984247336,-546.0,0.00075,120]
[358356651,1744984247345,-546.0,0.00075068,120]
[358356652,1744984247354,-500.0,0.00075154,120]
[358356653,1744984247362,-175.58764737,0.00075154,120]
[358356654,1744984247372,-500.0,0.00075154,120]
[358356655,1744984247381,-865.2,0.00075284,2]
[358356656,1744984247391,-502.38997492,0.00075371,15]
[358356657,1744984247400,-500.0,0.00075404,120]
[358356658,1744984247410,-864.18,0.00075438,120]
[358356659,1744984247419,-500.0,0.00075438,120]
[358356660,1744984247428,-500.0,0.00075438,120]
[358356661,1744984247437,-500.0,0.00075438,120]
[358356662,1744984247447,-500.0,0.00075438,120]
[358356663,1744984247456,-500.0,0.00075438,120]
[358356664,1744984247465,-500.0,0.00075438,120]
[358356665,1744984247474,-500.0,0.00075438,2]
[358356666,1744984247483,-173.36082289,0.00075438,120]
[358356667,1744984247493,-500.0,0.00075438,120]
[358356668,1744984247503,-629.32,0.00075438,2]
[358356669,1744984247512,-500.0,0.00075438,120]
[358356670,1744984247521,-500.0,0.00075438,120]
[358356671,1744984247530,-500.0,0.00075438,120]
[358356672,1744984247540,-500.0,0.00075438,120]
[358356673,1744984247549,-500.0,0.00075438,120]
[358356674,1744984247559,-500.0,0.00075438,120]
[358356675,1744984247568,-509.99952835,0.00075438,120]
[358356676,1744984247582,-500.0,0.00075438,120]
[358356677,1744984247591,-500.0,0.00075438,120]
[358356678,1744984247601,-500.0,0.00075438,120]
[358356679,1744984247611,-500.0,0.00075438,2]
[358356680,1744984247622,-500.0,0.00075444,2]
[358356681,1744984247631,-3689.14,0.00075465,120]
[358356682,1744984247640,-500.0,0.00075465,120]
[358356683,1744984247649,-565.20883009,0.00075465,120]
[358356684,1744984247659,-500.0,0.00075465,120]
[358356685,1744984247669,-15905.56,0.00075465,7]
[358356686,1744984247678,-500.0,0.00075465,120]
[358356687,1744984247688,-4127.44,0.00075465,120]
[358356688,1744984247697,-500.0,0.00075465,120]
[358356689,1744984247707,-500.0,0.00075465,120]
[358356690,1744984247716,-500.0,0.00075466,120]
[358356691,1744984247726,-515.63325894,0.00075466,120]
[358356692,1744984247736,-1176.46,0.00075466,120]
[358356693,1744984247745,-500.0,0.00075466,120]
[358356694,1744984247754,-500.0,0.00075466,120]
[358356695,1744984247763,-791.3,0.00075466,120]
[358356696,1744984247772,-500.0,0.00075466,120]
[358356697,1744984247782,-1000.0,0.00075466,120]
[358356698,1744984247790,-500.0,0.00075466,120]
[358356699,1744984247799,-500.0,0.00075466,120]
[358356700,1744984247808,-692.15103471,0.00075514,15]
[358356701,1744984247817,-199.79769971,0.00075555,38]
[358356702,1744984247827,-500.0,0.00075702,120]
[358356703,1744984247836,-500.0,0.00075702,120]
[358356704,1744984247845,-150.0,0.00075742,60]
[358356705,1744984247855,-150.0,0.00075744,60]
[358356706,1744984247864,-168.02529908,0.00075746,60]
[358356707,1744984247873,-150.0,0.00075748,60]
[358356708,1744984247882,-150.0,0.00075753,60]
[358356709,1744984247891,-150.0,0.00075756,60]
[358356710,1744984247900,-150.0,0.00075757,60]
[358356711,1744984247909,-150.0,0.00075759,60]
[358356712,1744984247919,-150.0,0.00075765,60]
[358356713,1744984247928,-150.0,0.00075767,60]
[358356714,1744984247940,-150.0,0.00075768,60]
[358356715,1744984247949,-150.0,0.0007577,60]
[358356716,1744984247958,-150.0,0.00075772,60]
[358356717,1744984247968,-150.0,0.00075773,60]
[358356718,1744984247977,-150.0,0.00075774,60]
[358356719,1744984247987,-150.0,0.00075777,60]
[358356720,1744984247998,-150.0,0.00075778,60]
[358356721,1744984248007,-150.0,0.00075778,60]
[358356722,1744984248016,-150.0,0.00075778,60]
[358356723,1744984248025,-150.0,0.00075782,60]
[358356724,1744984248035,-150.0,0.00075789,60]
[358356725,1744984248045,-150.0,0.00075789,60]
[358356726,1744984248055,-150.0,0.00075791,60]
[358356727,1744984248065,-150.0,0.00075794,60]
[358356728,1744984248077,-150.0,0.00075795,60]
[358356729,1744984248090,-150.0,0.00075799,60]
[358356730,1744984248103,-300.0,0.000758,27]
[358356731,1744984248114,-150.0,0.00075804,60]
[358356732,1744984248123,-150.0,0.00075809,60]
[358356733,1744984248132,-150.0,0.0007581,60]
[358356734,1744984248141,-150.0,0.00075811,60]
[358356735,1744984248150,-150.0,0.00075813,60]
[358356736,1744984248159,-150.88738714,0.00075814,60]
[358356737,1744984248168,-874.66755449,0.00075816,15]
[358356738,1744984248177,-150.0,0.00075819,60]
[358356739,1744984248185,-150.0,0.00075819,60]
[358356740,1744984248195,-216.45100182,0.00075824,60]
[358356741,1744984248203,-150.0,0.00075828,60]
[358356742,1744984248212,-150.0,0.00075829,60]
[358356743,1744984248221,-150.0,0.00075835,60]
[358356744,1744984248230,-150.0,0.00075837,60]
[358356745,1744984248239,-150.0,0.0007584,60]
[358356746,1744984248247,-150.0,0.0007584,60]
[358356747,1744984248257,-150.0,0.00075845,60]
[358356748,1744984248265,-150.0,0.00075845,60]
[358356749,1744984248273,-150.0,0.00075849,60]
[358356750,1744984248281,-150.0,0.00075851,60]
[358356751,1744984248289,-150.0,0.00075853,60]
[358356752,1744984248297,-150.0,0.00075854,60]
[358356753,1744984248305,-150.0,0.00075858,60]
[358356754,1744984248313,-150.0,0.00075865,60]
[358356755,1744984248320,-150.0,0.00075866,60]
[358356756,1744984248328,-150.0,0.00075869,60]
[358356757,1744984248336,-150.0,0.00075875,60]
[358356758,1744984248346,-150.0,0.00075875,60]
[358356759,1744984248355,-150.0,0.00075881,60]
[358356760,1744984248365,-150.0,0.00075883,60]
[358356761,1744984248376,-637.91909006,0.00075886,47]
[358356762,1744984248387,-150.0,0.00075889,60]
[358356763,1744984248399,-150.0,0.00075891,60]
[358356764,1744984248408,-150.0,0.00075898,60]
[358356765,1744984248418,-1086.66450083,0.000759,120]
[358356766,1744984248427,-156.73245421,0.000759,59]
[358356767,1744984248436,-238.47562392,0.000759,59]
[358356768,1744984248446,-600.0,0.000759,27]
[358356769,1744984248456,-150.0,0.00075902,60]
[358356770,1744984248465,-150.0,0.00075905,60]
[358356771,1744984248475,-150.0,0.00075916,60]
[358356772,1744984248485,-153.42314445,0.00075917,90]
[358356773,1744984248494,-150.0,0.00075918,60]
[358356774,1744984248504,-150.0,0.00075929,60]
[358356775,1744984248514,-150.0,0.00075935,60]
[358356776,1744984248524,-150.0,0.00075937,60]
[358356777,1744984248534,-251.54055955,0.0007594,120]
[358356778,1744984248544,-150.0,0.0007594,60]
[358356779,1744984248554,-150.0,0.00075941,60]
[358356780,1744984248564,-150.0,0.00075944,60]
[358356781,1744984248576,-150.0,0.00075945,60]
[358356782,1744984248585,-150.0,0.00075946,60]
[358356783,1744984248595,-150.0,0.00075947,60]
[358356784,1744984248605,-88888.0,0.00075949,120]
[358356785,1744984248615,-150.0,0.0007595,60]
[358356786,1744984248625,-150.0,0.0007595,60]
[358356787,1744984248635,-150.0,0.00075951,60]
[358356788,1744984248645,-150.0,0.00075956,60]
[358356789,1744984248655,-150.0,0.0007596,60]
[358356790,1744984248666,-150.0,0.00075961,60]
[358356791,1744984248675,-150.0,0.00075962,60]
[358356792,1744984248685,-150.0,0.00075969,60]
[358356793,1744984248694,-150.0,0.0007597,60]
[358356794,1744984248703,-489.86277134,0.00075973,15]
[358356795,1744984248713,-150.0,0.00075975,60]
[358356796,1744984248722,-150.0,0.00075976,60]
[358356797,1744984248731,-150.0,0.0007598,60]
[358356798,1744984248741,-150.0,0.00075981,60]
[358356799,1744984248751,-150.0,0.00075982,60]
[358356800,1744984248761,-864.18,0.00075986,120]
[358356801,1744984248770,-500.0,0.00075986,120]
[358356802,1744984248780,-500.0,0.00075986,120]
[358356803,1744984248790,-500.0,0.00075986,120]
[358356804,1744984248799,-500.0,0.00075986,120]
[358356805,1744984248809,-256.58405054,0.00075986,120]
[358356806,1744984248818,-500.0,0.00075986,120]
[358356807,1744984248828,-500.0,0.00075986,120]
[358356808,1744984248837,-629.32,0.00075986,2]
[358356809,1744984248847,-500.0,0.00075986,120]
[358356810,1744984248856,-500.0,0.00075986,120]
[358356811,1744984248866,-500.0,0.00075986,120]
[358356812,1744984248876,-500.0,0.00075986,120]
[358356813,1744984248885,-500.0,0.00075986,120]
[358356814,1744984248895,-500.0,0.00075986,120]
[358356815,1744984248904,-500.0,0.00075986,120]
[358356816,1744984248914,-150.0,0.00075988,60]
[358356817,1744984248924,-150.0,0.00075988,60]
[358356818,1744984248933,-150.0,0.00075989,60]
[358356819,1744984248943,-150.0,0.0007599,60]
[358356820,1744984248952,-23175.557433,0.0007599,6]
[358356821,1744984248962,-150.52,0.0007599,120]
[358356822,1744984248971,-504.2014581,0.00075992,2]
[358356823,1744984248981,-150.0,0.00075996,60]
[358356824,1744984248991,-150.0,0.00075997,60]
[358356825,1744984249002,-150.0,0.00075999,60]
[358356826,1744984249011,-500.0,0.00075999,2]
[358356827,1744984249021,-500.0,0.00075999,2]
[358356828,1744984249031,-500.0,0.00075999,2]
[358356829,1744984249041,-515.95869302,0.00076,120]
[358356830,1744984249050,-900.0,0.00076,77]
[358356831,1744984249060,-10000.0,0.00076,120]
[358356832,1744984249069,-574020.83678336,0.00076,120]
[358356833,1744984249079,-184.860324,0.00076,120]
[358356834,1744984249089,-150.0,0.00076,60]
[358356835,1744984249098,-151.522897,0.00076,120]
[358356836,1744984249108,-151.0,0.00076,120]
[358356837,1744984249118,-151.0,0.00076,120]
[358356838,1744984249127,-151.0,0.00076,120]
[358356839,1744984249137,-151.0,0.00076,120]
[358356840,1744984249158,-151.0,0.00076,120]
[358356841,1744984249377,-188.663842,0.00076,120]
[358356842,1744984249387,-151.0,0.00076,120]
[358356843,1744984249397,-151.0,0.00076,120]
[358356844,1744984249407,-151.0,0.00076,120]
[358356845,1744984249417,-151.0,0.00076,120]
[358356846,1744984249427,-151.0,0.00076,120]
[358356847,1744984249436,-151.0,0.00076,120]
[358356848,1744984249446,-254.974492,0.00076,120]
[358356849,1744984249456,-151.0,0.00076,120]
[358356850,1744984249466,-1448.47233956,0.00076003,6]
[358356851,1744984249475,-150.0,0.00076004,60]
[358356852,1744984249484,-150.0,0.00076004,60]
[358356853,1744984249495,-409.25123878,0.0007601,120]
[358356854,1744984249504,-3689.14,0.00076013,120]
[358356855,1744984249514,-500.0,0.00076013,120]
[358356856,1744984249524,-500.0,0.00076013,120]
[358356857,1744984249534,-15905.56,0.00076013,7]
[358356858,1744984249544,-500.0,0.00076013,120]
[358356859,1744984249554,-4127.44,0.00076013,120]
[358356860,1744984249563,-500.0,0.00076013,120]
[358356861,1744984249574,-500.0,0.00076013,120]
[358356862,1744984249585,-5793.88935824,0.00076013,6]
[358356863,1744984249595,-500.0,0.00076014,120]
[358356864,1744984249604,-1176.46,0.00076014,120]
[358356865,1744984249614,-500.0,0.00076014,120]
[358356866,1744984249624,-500.0,0.00076014,120]
[358356867,1744984249635,-791.3,0.00076014,120]
[358356868,1744984249645,-500.0,0.00076014,120]
[358356869,1744984249653,-1000.0,0.00076014,120]
[358356870,1744984249661,-404.88405186,0.00076014,120]
[358356871,1744984249670,-500.0,0.00076014,120]
[358356872,1744984249678,-3473.5487299,0.00076023,8]
[358356873,1744984249688,-84673.2031136,0.00076023,8]
[358356874,1744984249698,-150.0,0.00076048,120]
[358356875,1744984249708,-151.0,0.00076049,120]
[358356876,1744984249717,-191.077434,0.00076049,120]
[358356877,1744984249726,-151.0,0.00076049,120]
[358356878,1744984249736,-151.0,0.00076049,120]
[358356879,1744984249746,-152.400263,0.00076049,120]
[358356880,1744984249755,-151.0,0.00076049,120]
[358356881,1744984249765,-151.0,0.00076049,120]
[358356882,1744984249774,-151.0,0.00076049,120]
[358356883,1744984249784,-259.723008,0.00076049,120]
[358356884,1744984249793,-151.0,0.00076049,120]
[358356885,1744984249802,-151.0,0.00076049,120]
[358356886,1744984249813,-748.358392,0.00076049,120]
[358356887,1744984249822,-748.358392,0.00076049,120]
[358356888,1744984249832,-151.0,0.00076049,120]
[358356889,1744984249843,-151.0,0.00076049,120]
[358356890,1744984249852,-151.0,0.00076049,120]
[358356891,1744984249862,-155.97365,0.00076049,120]
[358356892,1744984249873,-151.0,0.00076049,120]
[358356893,1744984249882,-151.0,0.00076049,120]
[358356894,1744984249892,-203.969351,0.00076049,120]
[358356895,1744984249901,-151.0,0.00076049,120]
[358356896,1744984249910,-154.733949,0.00076049,120]
[358356897,1744984249919,-14270.8243365,0.00076089,8]
[358356898,1744984249929,-160.657574,0.00076089,120]
[358356899,1744984249939,-692.15103471,0.00076137,15]
[358356900,1744984249949,-1448.47233956,0.0007624,6]
[358356901,1744984249958,-500.0,0.0007625,120]
[358356902,1744984249966,-500.0,0.0007625,120]
[358356903,1744984249975,-151.0,0.00076251,120]
[358356904,1744984249985,-874.66755449,0.00076266,15]
[358356905,1744984249994,-153.16,0.000763,75]
[358356906,1744984250003,-153.16,0.000763,75]
[358356907,1744984250012,-153.16,0.000763,75]
[358356908,1744984250022,-153.16,0.000763,75]
[358356909,1744984250032,-153.16,0.000763,75]
[358356910,1744984250041,-153.16,0.000763,75]
[358356911,1744984250052,-153.16,0.000763,75]
[358356912,1744984250063,-153.16,0.000763,75]
[358356913,1744984250074,-153.16,0.000763,75]
[358356914,1744984250083,-153.16,0.000763,75]
[358356915,1744984250093,-199.79769971,0.00076314,39]
[358356916,1744984250102,-200.0,0.0007648,120]
[358356917,1744984250112,-864.18,0.00076534,120]
[358356918,1744984250121,-500.0,0.00076534,120]
[358356919,1744984250130,-500.0,0.00076534,120]
[358356920,1744984250139,-500.0,0.00076534,120]
[358356921,1744984250148,-500.0,0.00076534,120]
[358356922,1744984250158,-500.0,0.00076534,120]
[358356923,1744984250167,-151.0,0.00076534,120]
[358356924,1744984250176,-500.0,0.00076534,120]
[358356925,1744984250185,-151.0,0.00076534,120]
[358356926,1744984250195,-151.0,0.00076534,120]
[358356927,1744984250204,-151.0,0.00076534,120]
[358356928,1744984250213,-151.0,0.00076534,2]
[358356929,1744984250223,-629.32,0.00076534,2]
[358356930,1744984250231,-151.0,0.00076534,120]
[358356931,1744984250241,-500.0,0.00076534,120]
[358356932,1744984250251,-500.0,0.00076534,120]
[358356933,1744984250386,-500.0,0.00076534,120]
[358356934,1744984250395,-500.0,0.00076534,120]
[358356935,1744984250405,-500.0,0.00076534,120]
[358356936,1744984250415,-500.0,0.00076534,120]
[358356937,1744984250424,-500.0,0.00076534,120]
[358356938,1744984250434,-237.82099356,0.00076535,120]
[358356939,1744984250443,-151.0,0.00076535,120]
[358356940,1744984250453,-151.0,0.00076535,120]
[358356941,1744984250462,-151.0,0.00076535,120]
[358356942,1744984250471,-151.0,0.00076535,120]
[358356943,1744984250481,-151.0,0.00076535,120]
[358356944,1744984250491,-151.0,0.00076541,120]
[358356945,1744984250500,-151.0,0.00076541,60]
[358356946,1744984250509,-301.299141,0.00076541,120]
[358356947,1744984250519,-257.100718,0.00076541,120]
[358356948,1744984250529,-257.100718,0.00076541,120]
[358356949,1744984250539,-151.0,0.00076541,120]
[358356950,1744984250548,-237.607399,0.00076541,120]
[358356951,1744984250558,-177.075196,0.00076541,120]
[358356952,1744984250567,-151.0,0.00076541,120]
[358356953,1744984250580,-151.0,0.00076541,120]
[358356954,1744984250590,-501.79644253,0.00076546,15]
[358356955,1744984250600,-1448.47233956,0.00076551,6]
[358356956,1744984250610,-3689.14,0.00076561,120]
[358356957,1744984250619,-500.0,0.00076561,120]
[358356958,1744984250628,-500.0,0.00076561,120]
[358356959,1744984250638,-15905.56,0.00076561,7]
[358356960,1744984250647,-500.0,0.00076561,120]
[358356961,1744984250657,-4127.44,0.00076561,120]
[358356962,1744984250667,-500.0,0.00076561,120]
[358356963,1744984250676,-500.0,0.00076561,120]
[358356964,1744984250685,-500.0,0.00076562,120]
[358356965,1744984250695,-1176.46,0.00076562,120]
[358356966,1744984250705,-500.0,0.00076562,120]
[358356967,1744984250715,-500.0,0.00076562,120]
[358356968,1744984250724,-791.3,0.00076562,120]
[358356969,1744984250734,-500.0,0.00076562,120]
[358356970,1744984250744,-1000.0,0.00076562,120]
[358356971,1744984250753,-500.0,0.00076562,120]
[358356972,1744984250763,-251.54055955,0.00076595,120]
[358356973,1744984250773,-240.0,0.000766,120]
[358356974,1744984250782,-1586.0,0.000766,14]
[358356975,1744984250792,-2013.18218254,0.00076628,119]
[358356976,1744984250801,-874.66755449,0.00076717,15]
[358356977,1744984250813,-692.15103471,0.00076759,15]
[358356978,1744984250825,-1448.47233956,0.00076788,6]
[358356979,1744984250839,-482.72927999,0.00076798,120]
[358356980,1744984250848,-500.0,0.00076798,120]
[358356981,1744984250858,-156.73245421,0.00076893,60]
[358356982,1744984250868,-238.47562389,0.00076893,60]
[358356983,1744984250877,-900.0,0.00077,78]
[358356984,1744984250887,-151.0,0.00077013,120]
[358356985,1744984250896,-151.0,0.00077013,120]
[358356986,1744984250906,-151.0,0.00077013,120]
[358356987,1744984250915,-151.0,0.00077013,120]
[358356988,1744984250925,-151.0,0.00077013,120]
[358356989,1744984250934,-151.0,0.00077013,120]
[358356990,1744984250944,-748.358392,0.00077013,120]
[358356991,1744984250953,-748.358392,0.00077013,120]
[358356992,1744984250962,-151.0,0.00077013,120]
[358356993,1744984250973,-199.79769971,0.00077072,39]
[358356994,1744984250982,-864.18,0.00077082,120]
[358356995,1744984250991,-500.0,0.00077082,120]
[358356996,1744984251002,-500.0,0.00077082,120]
[358356997,1744984251012,-500.0,0.00077082,120]
[358356998,1744984251021,-500.0,0.00077082,120]
[358356999,1744984251031,-500.0,0.00077082,120]
[358357000,1744984251040,-500.0,0.00077082,120]
[358357001,1744984251050,-629.32,0.00077082,2]
[358357002,1744984251060,-500.0,0.00077082,120]
[358357003,1744984251069,-500.0,0.00077082,120]
[358357004,1744984251079,-500.0,0.00077082,120]
[358357005,1744984251088,-500.0,0.00077082,120]
[358357006,1744984251098,-500.0,0.00077082,120]
[358357007,1744984251107,-500.0,0.00077082,120]
[358357008,1744984251117,-500.0,0.00077082,120]
[358357009,1744984251126,-500.0,0.00077088,2]
[358357010,1744984251135,-999.0,0.00077088,120]
[358357011,1744984251145,-1448.47233956,0.00077099,6]
[358357012,1744984251156,-3689.14,0.00077109,120]
[358357013,1744984251166,-500.0,0.00077109,120]
[358357014,1744984251185,-500.0,0.00077109,120]
[358357015,1744984251195,-15905.56,0.00077109,7]
[358357016,1744984251205,-500.0,0.00077109,120]
[358357017,1744984251214,-4127.44,0.00077109,120]
[358357018,1744984251224,-500.0,0.00077109,120]
[358357019,1744984251233,-500.0,0.00077109,120]
[358357020,1744984251242,-498.84604895,0.0007711,120]
[358357021,1744984251252,-1176.46,0.0007711,120]
[358357022,1744984251262,-500.0,0.0007711,120]
[358357023,1744984251272,-500.0,0.0007711,120]
[358357024,1744984251281,-791.3,0.0007711,120]
[358357025,1744984251291,-500.0,0.0007711,120]
[358357026,1744984251300,-1000.0,0.0007711,120]
[358357027,1744984251309,-500.0,0.0007711,120]
[358357028,1744984251319,-874.66755449,0.00077167,15]
[358357029,1744984251329,-251.54055955,0.0007725,120]
[358357030,1744984251339,-500.0,0.00077346,120]
[358357031,1744984251349,-692.15103471,0.00077381,15]
[358357032,1744984251359,-150.0,0.00077418,120]
[358357033,1744984251368,-447.874,0.00077495,120]
[358357034,1744984251377,-865.2,0.00077548,2]
[358357035,1744984251387,-1448.47233956,0.00077604,6]
[358357036,1744984251396,-250.0,0.00077614,2]
[358357037,1744984251406,-874.66755449,0.00077618,15]
[358357038,1744984251415,-2013.18218254,0.00077625,120]
[358357039,1744984251425,-864.18,0.0007763,120]
[358357040,1744984251434,-500.0,0.0007763,120]
[358357041,1744984251444,-564.63935432,0.0007763,120]
[358357042,1744984251454,-500.0,0.0007763,120]
[358357043,1744984251464,-500.0,0.0007763,120]
[358357044,1744984251473,-500.0,0.0007763,120]
[358357045,1744984251483,-500.0,0.0007763,120]
[358357046,1744984251493,-629.32,0.0007763,2]
[358357047,1744984251504,-500.0,0.0007763,120]